[Event "Grand Prix Romania 1st Stage 2024"]
[Site "Bucuresti"]
[Date "2024.03.24"]
[Round "6.14"]
[White "Gavrilescu, David"]
[Black "Lauda, Alexandr"]
[Result "1-0"]
[ECO "B30"]
[WhiteElo "2524"]
[BlackElo "2198"]
[Annotator "TA"]
[PlyCount "118"]
[EventDate "2024.03.20"]
[EventType "swiss"]
[EventCountry "ROU"]
[SourceTitle "playchess.com"]
[Source "ChessBase"]
[SourceQuality "1"]
[TimeControl "900+5"]

1. e4 {[%emt 0:00:02]} c5 {[%emt 0:00:01]} 2. Nf3 {[%emt 0:00:02]} Nc6 {[%emt 0:00:01]} 3. Bb5 {[%emt 0:00:01]} g5 {[%emt 0:00:01]} 4. Nxg5 {[%emt 0:00:51]} Nf6 {[%emt 0:00:01]} 5. Bxc6 {[%emt 0:00:53]} dxc6 {[%emt 0:00:02]} 6. e5 {[%emt 0:00:02] B30: Sicilian: 2...Nc6 3 Bb5, lines without ...g6.} Rg8 {[%emt 0:00:24]} 7. d4 {[%emt 0:00:24]} h6 {[%emt 0:02:32]} 8. Nxf7 $146 {[%emt 0:01:27]} ({Predecessor:} 8. exf6 hxg5 9. dxc5 Qxd1+ 10. Kxd1 exf6 11. Be3 Be6 12. Nd2 O-O-O 13. Ke2 f5 14. f3 {1-0 Unneland,M (2146)-Popadic,D (2180) EU-ch Online U2300 Qual 2020 (2)}) 8... Qd5 {[%emt 0:00:14]} 9. Qf3 {[%emt 0:03:38]} Rxg2 {[%emt 0:00:02]} 10. Nd2 {[%emt 0:00:42]} Kxf7 $2 {[%emt 0:01:51]} (10... cxd4 11. exf6 Kxf7 12. fxe7+ Kxe7 13. Qxd5 cxd5 14. Nf3 $17) (10... Bg4 $1 $19 {has better winning chances.}) 11. exf6 $17 {[%emt 0:00:04]} Qxf3 {[%emt 0:01:12]} 12. Nxf3 {[%emt 0:00:02]} exf6 {[%emt 0:00:01]} 13. Be3 {[%emt 0:00:16]} cxd4 {[%emt 0:00:18]} 14. Bxd4 {[%emt 0:00:17]} (14. Nxd4 $15 Bg4 15. h4) 14... c5 {[%emt 0:00:04]} (14... Bg4 15. Nh4 Bd6 (15... Re8+ $2 16. Kf1 $18) 16. h3 $18 (16. Nxg2 Bf3 $16)) 15. Be3 $1 {[%emt 0:01:09]} b6 {[%emt 0:00:45]} 16. Nd2 {[%emt 0:01:25]} Bd6 {[%emt 0:01:59]} 17. O-O-O {[%emt 0:00:51]} Be6 {[%emt 0:02:16]} (17... Rxh2 18. Nc4 Bc7 19. Rxh2 Bxh2 20. Rd8) 18. h4 {[%emt 0:00:40]} (18. Bxh6 $15 Rh8 (18... Rxf2 19. Ne4 $11) (18... Bxh2 19. Be3 $15) (18... Rxh2 19. Ne4 $15) (18... Bxa2 19. b3 $16) 19. Be3) 18... h5 $1 $17 {[%emt 0:00:13]} (18... Bxa2 $2 19. b3 $16) 19. Ne4 {[%emt 0:00:14]} Be5 {[%emt 0:00:53]} 20. a4 {[%emt 0:00:10]} Bg4 {[%emt 0:00:19]} 21. Rd3 {[%emt 0:00:20]} (21. Rdg1 $142 Rxg1+ 22. Rxg1) 21... Be2 {[%emt 0:00:12]} 22. Rd7+ {[%emt 0:00:36]} Ke6 {[%emt 0:00:10]} 23. Rh7 {[%emt 0:00:02]} Rg4 {[%emt 0:00:51]} 24. f4 $2 {[%emt 0:00:15]} (24. Re1 $17 Rxe4 25. Rxe2) 24... Bf3 $19 {[%emt 0:00:58]} (24... Bxf4 25. Bxf4 Rxf4 26. Ng3 Rxa4 27. Kb1 $11) 25. Nf2 {[%emt 0:00:02]} Bxh1 {[%emt 0:00:25]} ({Not} 25... Bxf4 26. Nxg4 Bxh1 (26... hxg4 27. Bxf4 Bxh1 28. Bg3 $17) 27. Rxh5 Bxe3+ 28. Nxe3 $17) (25... Rxf4 $19 26. Bxf4 Bxf4+ 27. Kb1 Bxh1 28. Nxh1 Rg8) 26. Nxg4 $17 {[%emt 0:00:02]} hxg4 {[%emt 0:00:02]} (26... Bxb2+ $19 27. Kxb2 hxg4) 27. fxe5 $17 {[%emt 0:00:01]} Kxe5 {[%emt 0:00:18]} 28. Kd2 {[%emt 0:00:01]} (28. Re7+ $17 Kf5 29. h5) 28... Bf3 {[%emt 0:00:09]} (28... Ke4 $1 $19 {Threatens to win with ...Rd8+.} 29. Re7+ Kf3) 29. h5 {[%emt 0:00:16]} Rd8+ {[%emt 0:00:09]} 30. Kc3 {[%emt 0:00:16]} f5 {[%emt 0:00:28]} (30... g3 $17 {...f5 is the strong threat.} 31. h6 a5 32. Re7+ Kf5) 31. Bg5 {[%emt 0:00:14]} (31. h6 $15) 31... Rg8 $1 $17 {[%emt 0:00:05]} 32. Re7+ {[%emt 0:00:17]} Kd6 {[%emt 0:00:02]} 33. Bf6 {[%emt 0:00:26]} g3 {[%emt 0:00:03]} (33... Rf8 $142 34. Bh4 Rh8 35. Rxa7 Rxh5) 34. h6 $17 {[%emt 0:00:23]} g2 {[%emt 0:00:01]} 35. Re1 {[%emt 0:00:02]} g1=Q {[%emt 0:00:19]} 36. Rxg1 {[%emt 0:00:01]} Rxg1 {[%emt 0:00:01]} 37. h7 {[%emt 0:00:01]} Rh1 {[%emt 0:00:01]} 38. h8=Q {[%emt 0:00:02]} Rxh8 {[%emt 0:00:01]} 39. Bxh8 {[%emt 0:00:01]} Kd5 {[%emt 0:00:03]} 40. Kd2 {[%emt 0:00:05]} Ke4 {[%emt 0:00:03]} 41. Bf6 {[%emt 0:00:06]} Bh5 {[%emt 0:00:09]} 42. Bd8 {[%emt 0:00:05]} Be8 {[%emt 0:00:08]} 43. b3 {[%emt 0:00:12]} f4 {[%emt 0:00:03]} 44. Bc7 {[%emt 0:00:07]} (44. a5 $15) 44... Bc6 {[%emt 0:00:15]} ({Better is} 44... f3 $17 45. a5 bxa5 46. Bxa5 Bh5) 45. Bb8 $1 $11 {[%emt 0:00:05]} f3 {[%emt 0:00:15]} 46. Bxa7 {[%emt 0:00:06]} b5 {[%emt 0:00:13]} (46... Kf4 $5 47. Bb8+ $8 (47. Bxb6 $2 {perishes.} f2 $19) 47... Kg4 $15) 47. a5 {[%emt 0:00:01]} c4 {[%emt 0:00:03]} (47... f2 $5 48. Ke2 $8 Kd5 $11) 48. bxc4 {[%emt 0:00:25]} bxc4 {[%emt 0:00:01]} 49. Kc3 {[%emt 0:00:01]} Bd5 {[%emt 0:00:05]} ({Black should try} 49... Bb5 $11) 50. a6 $14 {[%emt 0:00:05]} Kf4 {[%emt 0:00:13]} 51. Bf2 {[%emt 0:00:02]} Kg4 {[%emt 0:00:04]} 52. Kd4 {[%emt 0:00:03]} Ba8 {[%emt 0:00:14]} 53. Kxc4 {[%emt 0:00:04]} Kf5 {[%emt 0:00:01]} 54. Kc5 {[%emt 0:00:09]} Ke6 {[%emt 0:00:04]} 55. c4 {[%emt 0:00:23]} Kd7 {[%emt 0:00:07]} 56. Kb6 {[%emt 0:00:00]} Kc8 {[%emt 0:00:02] [#]} (56... Be4 $14) 57. c5 $1 $16 {[%emt 0:00:35]} Bd5 {[%emt 0:00:23] [#]} 58. a7 $2 {[%emt 0:00:53]} (58. c6 $1 $16 {Intending a7 and mate.} Kb8 59. Kc5) 58... Kd7 $11 {[%emt 0:00:05]} 59. Kb5 {[%emt 0:00:05]} Kc8 $2 {[%mdl 8192]} (59... Bc6+ $11 60. Kb6 Ba8) 1-0

[Event "Grand Prix Romania 1st Stage 2024"]
[Site "Bucuresti"]
[Date "2024.03.24"]
[Round "6.15"]
[White "Moroni, Luca Jr"]
[Black "Nastase, Robert-Paul"]
[Result "1-0"]
[ECO "D02"]
[WhiteElo "2580"]
[BlackElo "2226"]
[Annotator "TA"]
[PlyCount "89"]
[EventDate "2024.03.20"]
[EventType "swiss"]
[EventCountry "ROU"]
[SourceTitle "playchess.com"]
[Source "ChessBase"]
[SourceQuality "1"]
[TimeControl "900+5"]

{[%evp 15,88,16,29,0,9,0,0,0,28,-2,39,39,32,27,52,47,56,47,56,35,41,13,102,90,88,91,104,98,158,152,155,134,176,174,145,163,137,149,166,169,241,0,235,223,254,137,128,126,238,241,258,11,81,126,106,0,211,203,302,250,489,347,462,401,403,377,361,359,393,379,358,366,2380,2176,29999]} 1. d4 {[%emt 0:00:01]} d5 {[%emt 0:00:01]} 2. Bf4 {[%emt 0:00:02]} e6 {[%emt 0:00:08]} 3. e3 {[%emt 0:00:01]} Bd6 {[%emt 0:00:09]} 4. Nf3 {[%emt 0:00:03]} c5 {[%emt 0:00:26]} 5. dxc5 {[%emt 0:00:03]} Bxc5 {[%emt 0:00:12]} 6. Nbd2 {[%emt 0:00:39]} Nf6 {[%emt 0:00:02]} 7. Bd3 {[%emt 0:00:02]} Nc6 {[%emt 0:00:12]} 8. O-O {[%emt 0:00:05]} O-O {[%emt 0:00:13]} 9. c3 {[%emt 0:00:03]} Bd6 {[%emt 0:00:09]} 10. Bxd6 {[%emt 0:00:13]} Qxd6 {[%emt 0:00:01]} 11. e4 {[%emt 0:00:11] Die Stellung ist ausgeglichen.} e5 {[%emt 0:00:13]} 12. Qc2 {[%emt 0:01:19]} dxe4 {[%emt 0:00:41]} 13. Nxe4 {[%emt 0:00:04]} Nxe4 {[%emt 0:00:01]} 14. Bxe4 {[%emt 0:00:02]} f5 {[%emt 0:00:01]} 15. Rad1 {[%emt 0:00:37]} Qf6 {[%emt 0:00:00]} 16. Bxc6 {[%emt 0:01:02]} bxc6 {[%emt 0:00:06]} 17. Qe2 {[%emt 0:00:38]} e4 {[%emt 0:03:31]} 18. Nd4 {[%emt 0:00:01]} c5 {[%emt 0:00:01]} (18... Be6 $1 $11 {bleibt in der Remisbreite.}) 19. Qc4+ $16 {[%emt 0:00:05]} Kh8 {[%emt 0:00:01]} 20. Qxc5 {[%emt 0:00:04] Weiß steht aktiver.} Ba6 {[%emt 0:00:00][%cal Oa8c8]} 21. Rfe1 {[%emt 0:00:02]} Rae8 {[%emt 0:00:09]} (21... Bd3 $142) 22. Qxa7 {[%emt 0:00:45]} f4 {[%emt 0:00:09]} 23. Qd7 {[%emt 0:01:12] Qc6 wäre nun fies.} Qg6 {[%emt 0:00:28]} 24. Kh1 {[%emt 0:01:14]} Bc8 {[%emt 0:00:47]} 25. Qc6 {[%emt 0:00:16] Droht stark Qxg6.} Rf6 {[%emt 0:00:02]} 26. Qd5 {[%emt 0:00:53]} Rd6 {[%emt 0:01:15]} 27. Qc5 {[%emt 0:00:36]} h5 {[%emt 0:02:37]} (27... e3 $142 28. Rc1 Ba6) 28. Ne2 $2 {[%emt 0:02:06]} (28. a4 $18) 28... Rf6 $2 {[%emt 0:01:40]} (28... Rxd1 $1 $11 29. Rxd1 Bg4) 29. Rd5 $18 {[%emt 0:00:34]} Bg4 {[%emt 0:00:56]} 30. Nd4 {[%emt 0:01:25]} (30. Rg5 $18 Qf7 31. h3) 30... f3 $16 {[%emt 0:00:54] [#]} 31. gxf3 {[%emt 0:00:04]} Rc8 {[%emt 0:01:08]} (31... exf3 $16 32. Rg1 (32. Rxe8+ Qxe8 33. Re5 Qg6 $11) 32... Qe4) 32. Qe7 $18 {[%emt 0:00:33]} exf3 {[%emt 0:00:55]} 33. Rd8+ $2 {[%emt 0:00:15]} (33. Qe3 $18) 33... Rxd8 {[%emt 0:00:05]} (33... Kh7 $1 $11 {hält das Gleichgewicht.} 34. Rg1 Rxd8 35. Qxd8 Qe4) 34. Qxd8+ $16 {[%emt 0:00:02]} Kh7 {[%emt 0:00:01] [#] ( -> ...Bh3)} 35. Qe8 {[%emt 0:00:03]} (35. Rg1 $1 $16) 35... Qg5 $2 {[%emt 0:00:25]} (35... Bh3 $11 36. Qxg6+ Rxg6) 36. Qe3 $18 {[%emt 0:00:23]} Qh4 {[%emt 0:00:14]} (36... Rf4 $142 37. Qe5 Qxe5 38. Rxe5 Bd7 39. Rxh5+ Kg6) 37. Rg1 {[%emt 0:00:47][%cal Be1g1,Bg1g3,Bg3f3][%mdl 32] b4 ist eine echte Drohung.} Qh3 $2 {[%emt 0:00:05]} (37... Rf7 38. Rg3 Bc8 39. Qd3+ (39. Nxf3 $2 {zu gefräßig.} Bb7 $19) 39... Kg8) 38. Qd3+ {[%emt 0:00:11]} Kh6 {[%emt 0:00:02]} 39. Rg3 {[%emt 0:00:07]} Qh4 {[%emt 0:00:01]} 40. Nxf3 {[%emt 0:00:20]} Bxf3+ {[%emt 0:00:07]} 41. Rxf3 {[%emt 0:00:01]} Re6 {[%emt 0:00:04]} 42. Rg3 {[%emt 0:00:19]} Qf4 {[%emt 0:00:05]} 43. Qd4 {[%emt 0:00:22][%csl Gg3][%cal Rd4g7]} Qc1+ $2 {[%emt 0:00:13]} (43... Qf7 44. Kg1 Re1+ 45. Kg2 Qb7+ 46. Kh3 Qc8+ 47. Kh4 Re7) 44. Rg1 {[%emt 0:00:08][%csl Gg1][%cal Rd4g7]} Re1 {[%emt 0:00:03]} 45. Qxg7# {[%emt 0:00:06] Gewichteter Fehlerwert: Weiß=0.41/Schwarz=0.72.  Verlustzug:     	---       	Schwarz=2     Gewinn verpasst:   	Weiß=2     	---        Fehler:       	Weiß=2     	Schwarz=8     Ungenau:       	Weiß=1     	Schwarz=5     OK:         	Weiß=12    	Schwarz=6     Bester:       	Weiß=4     	Schwarz=2} 1-0

[Event "Grand Prix Romania 1st Stage 2024"]
[Site "Bucuresti"]
[Date "2024.03.24"]
[Round "6.16"]
[White "Parligras, Mircea-Emilian"]
[Black "Breahna, Radu"]
[Result "1-0"]
[ECO "D45"]
[WhiteElo "2543"]
[BlackElo "2142"]
[Annotator "TA"]
[PlyCount "73"]
[EventDate "2024.03.20"]
[EventType "swiss"]
[EventCountry "ROU"]
[SourceTitle "playchess.com"]
[Source "ChessBase"]
[SourceQuality "1"]
[TimeControl "900+5"]

{[%evp 13,73,16,23,15,5,8,9,8,10,0,0,0,0,0,0,6,27,36,38,33,28,41,24,27,35,0,14,13,13,20,20,0,0,0,4,7,2,5,4,8,9,0,0,0,0,-51,-14,-14,-18,-105,-22,-20,-26,-29,0,0,0,0,0,0,67,70]} 1. d4 {[%emt 0:00:03]} d5 {[%emt 0:00:03]} 2. c4 {[%emt 0:00:02]} e6 {[%emt 0:00:04]} 3. Nf3 {[%emt 0:00:04]} Nf6 {[%emt 0:00:05]} 4. Nc3 {[%emt 0:00:02]} c6 {[%emt 0:00:05]} 5. e3 {[%emt 0:00:11]} Nbd7 {[%emt 0:00:04]} 6. Be2 {[%emt 0:00:04]} dxc4 {[%emt 0:00:19]} 7. a4 {[%emt 0:00:07]} Bd6 {[%emt 0:00:42]} 8. Nd2 {[%emt 0:00:08]} O-O {[%emt 0:01:53]} 9. Nxc4 {[%emt 0:00:06]} Bc7 {[%emt 0:00:06]} 10. O-O {[%emt 0:00:33] The position is equal.} e5 {[%emt 0:01:20]} 11. d5 {[%emt 0:04:06]} cxd5 {[%emt 0:00:03]} 12. Nxd5 {[%emt 0:00:02]} Nxd5 {[%emt 0:00:02]} 13. Qxd5 {[%emt 0:00:02]} Nf6 {[%emt 0:01:21]} 14. Qb5 {[%emt 0:01:24][%cal Of1d1]} Qd5 {[%emt 0:01:59]} 15. b3 {[%emt 0:01:28]} Bd7 {[%emt 0:00:56]} 16. Qxd5 {[%emt 0:00:30]} Nxd5 {[%emt 0:00:01]} 17. Bb2 {[%emt 0:00:13]} f6 {[%emt 0:00:21]} 18. Rac1 {[%emt 0:00:13]} Bc6 {[%emt 0:00:29]} 19. Bg4 {[%emt 0:01:01]} Kf7 {[%emt 0:01:05]} 20. Rfd1 {[%emt 0:00:31]} Rfd8 {[%emt 0:00:06]} 21. Ba3 {[%emt 0:00:11]} g6 {[%emt 0:02:12]} 22. Rd2 {[%emt 0:02:06]} f5 {[%emt 0:00:32]} 23. Be2 {[%emt 0:00:03]} Nf6 {[%emt 0:00:42]} 24. Nd6+ {[%emt 0:00:28]} Bxd6 {[%emt 0:00:07]} 25. Rxd6 {[%emt 0:00:02]} (25. Bxd6 $2 {too greedy.} Ne4 26. Rcd1 Nxd2 27. Rxd2 Rd7 28. Bc4+ Kf6 $19) 25... Rxd6 {[%emt 0:00:27]} 26. Bxd6 {[%emt 0:00:03] This pair of bishops is nice.} Ke6 {[%emt 0:00:37]} 27. Ba3 {[%emt 0:00:06]} Rd8 {[%emt 0:00:39]} 28. f3 {[%emt 0:00:48]} Rd2 {[%emt 0:00:32]} 29. Kf2 {[%emt 0:00:50]} (29. Bf1 $11) 29... e4 {[%emt 0:00:19]} 30. Bb4 {[%emt 0:00:21]} Ra2 {[%emt 0:00:13][%cal Of5f4]} 31. Bc5 {[%emt 0:00:18]} (31. Kf1 $11) 31... a6 {[%emt 0:00:04]} (31... exf3 $17 32. gxf3 Nd7) 32. Bd4 {[%emt 0:00:17]} exf3 {[%emt 0:00:04]} 33. gxf3 {[%emt 0:00:02]} Nd5 {[%emt 0:00:07]} 34. Kf1 {[%emt 0:00:28]} Rd2 {[%emt 0:00:08]} 35. Ke1 {[%emt 0:00:10]} Ra2 {[%emt 0:00:04]} 36. h4 {[%emt 0:00:05]} f4 {[%emt 0:00:14]} ({Black should try} 36... Nb4 $11) 37. e4 $1 {[%emt 0:01:02] Weighted Error Value: White=0.11 (very precise) /Black=0.13 (very precise) .  Mistake:       	White=2     	Black=2      Inaccurate:     	White=1     	Black=2      OK:         	White=6     	Black=12     Best:        	---       	Black=1      Strong:       	White=1     	---} 1-0

[Event "Grand Prix Romania 1st Stage 2024"]
[Site "Bucuresti"]
[Date "2024.03.24"]
[Round "6.17"]
[White "Grigore, George-Gabriel"]
[Black "Maximov, Oleg"]
[Result "0-1"]
[ECO "E91"]
[WhiteElo "2423"]
[BlackElo "2185"]
[Annotator "RC"]
[PlyCount "80"]
[EventDate "2024.03.20"]
[EventType "swiss"]
[EventCountry "ROU"]
[SourceTitle "playchess.com"]
[Source "ChessBase"]
[SourceQuality "1"]
[TimeControl "900+5"]

1. d4 {[%emt 0:00:03]} Nf6 {[%emt 0:00:04]} 2. c4 {[%emt 0:00:02]} d6 {[%emt 0:00:03]} 3. Nf3 {[%emt 0:00:09]} Bg4 {[%emt 0:00:04]} 4. Nc3 {[%emt 0:00:02]} g6 {[%emt 0:00:13]} 5. e4 {[%emt 0:00:19]} Bg7 {[%emt 0:00:10]} 6. Be2 {[%emt 0:00:02]} O-O {[%emt 0:00:25]} 7. Qb3 {[%emt 0:00:30]} Qc8 {[%emt 0:03:24]} 8. O-O {[%emt 0:00:29]} Bxf3 {[%emt 0:01:33]} 9. Bxf3 {[%emt 0:00:08]} Nc6 {[%emt 0:00:02]} 10. Ne2 {[%emt 0:01:17]} e5 {[%emt 0:00:29]} 11. d5 {[%emt 0:05:04]} Nd4 {[%emt 0:00:08]} 12. Nxd4 {[%emt 0:00:02]} exd4 {[%emt 0:00:01]} 13. Bd2 {[%emt 0:00:31]} b6 {[%emt 0:02:04]} 14. Qc2 {[%emt 0:02:29]} a5 {[%emt 0:00:13]} 15. Rae1 {[%emt 0:00:07]} Re8 {[%emt 0:00:22]} 16. b3 {[%emt 0:00:03]} Qd8 {[%emt 0:00:38]} 17. Bc1 {[%emt 0:00:47]} Nd7 {[%emt 0:00:18]} 18. g3 {[%emt 0:01:12]} Nc5 {[%emt 0:00:10]} 19. Qd2 {[%emt 0:00:30]} Qf6 {[%emt 0:00:51]} 20. Bg2 {[%emt 0:00:02]} d3 {[%emt 0:00:31]} 21. Rd1 {[%emt 0:02:09]} Nxe4 {[%emt 0:01:30]} 22. Bxe4 {[%emt 0:00:10]} Rxe4 {[%emt 0:00:01]} 23. Qxd3 {[%emt 0:00:01]} Rae8 {[%emt 0:00:01]} 24. Be3 {[%emt 0:00:12]} Qf3 {[%emt 0:00:22]} 25. Bf4 {[%emt 0:00:29]} Qxd3 {[%emt 0:01:16]} 26. Rxd3 {[%emt 0:00:01]} Re2 {[%emt 0:00:02]} 27. Rd2 {[%emt 0:00:14]} Rxd2 {[%emt 0:00:01]} 28. Bxd2 {[%emt 0:00:01]} Re2 {[%emt 0:00:01]} 29. Rd1 {[%emt 0:00:18]} Bd4 {[%emt 0:00:00]} 30. Be1 {[%emt 0:00:02]} Bc5 {[%emt 0:00:01]} 31. a4 {[%emt 0:00:05]} Rb2 {[%emt 0:00:19]} 32. Rd3 {[%emt 0:00:07]} Rb1 {[%emt 0:00:05]} 33. Kf1 {[%emt 0:00:01]} Bb4 {[%emt 0:00:10]} 34. Re3 {[%emt 0:00:02]} Kf8 {[%emt 0:00:06]} 35. f4 {[%emt 0:00:09]} Bxe1 36. Rxe1 {[%emt 0:00:01]} Rxb3 {[%emt 0:00:07]} 37. f5 {[%emt 0:00:11]} Rf3+ {[%emt 0:00:07]} 38. Kg2 {[%emt 0:00:07]} Rxf5 {[%emt 0:00:01]} 39. Re4 {[%emt 0:00:06]} Re5 {[%emt 0:00:05]} 40. Rd4 {[%emt 0:00:02]} Re2+ {[%emt 0:00:03]} 0-1

[Event "Grand Prix Romania 1st Stage 2024"]
[Site "Bucuresti"]
[Date "2024.03.24"]
[Round "6.18"]
[White "Mikhalevski, Victor"]
[Black "Miroiu, George-Catalin"]
[Result "1-0"]
[ECO "A07"]
[WhiteElo "2514"]
[BlackElo "2294"]
[Annotator "TA"]
[PlyCount "109"]
[EventDate "2024.03.20"]
[EventType "swiss"]
[EventCountry "ROU"]
[SourceTitle "playchess.com"]
[Source "ChessBase"]
[SourceQuality "1"]
[TimeControl "900+5"]

{[%evp 10,109,27,0,0,10,7,-5,16,12,20,16,14,17,20,16,10,7,18,5,40,13,61,43,69,59,75,68,87,76,76,69,151,138,210,210,213,216,200,198,220,224,206,218,203,131,270,223,439,483,447,318,299,302,420,424,411,423,414,397,382,380,378,391,404,351,341,341,341,288,318,315,275,240,242,242,227,227,500,493,514,510,520,594,594,587,575,577,732,697,1428,1366,1900,1545,1379,1174,1345,1300,29987,29988,29988,29989]} 1. Nf3 {[%emt 0:00:03]} d5 {[%emt 0:00:04]} 2. g3 {[%emt 0:00:01]} c6 {[%emt 0:00:01]} 3. Bg2 {[%emt 0:00:02]} Nf6 {[%emt 0:00:15]} 4. O-O {[%emt 0:00:02]} Bg4 {[%emt 0:00:04]} 5. h3 {[%emt 0:00:02]} Bxf3 {[%emt 0:00:26]} 6. Bxf3 {[%emt 0:00:02]} e5 {[%emt 0:00:03]} 7. d3 {[%emt 0:00:02]} Nbd7 {[%emt 0:00:58]} 8. e4 {[%emt 0:00:06]} dxe4 {[%emt 0:00:14] The position is equal.} 9. dxe4 {[%emt 0:00:02]} Nc5 {[%emt 0:01:00]} 10. Nd2 {[%emt 0:00:13]} Qc7 {[%emt 0:00:07]} 11. Qe2 {[%emt 0:00:11]} Be7 {[%emt 0:01:30]} 12. a4 {[%emt 0:00:05]} O-O {[%emt 0:00:21]} 13. Nc4 {[%emt 0:00:09]} Rfe8 {[%emt 0:01:43]} 14. Bg2 {[%emt 0:00:21]} Bf8 {[%emt 0:03:05]} 15. b4 {[%emt 0:00:18]} Ncd7 {[%emt 0:01:24]} (15... Ne6 $11) 16. c3 {[%emt 0:00:13]} b6 {[%emt 0:00:59][%cal Bb7b6,Bb6b5][%mdl 32]} 17. Bd2 {[%emt 0:00:37]} a6 {[%emt 0:00:05]} 18. h4 {[%emt 0:01:19]} Reb8 {[%emt 0:00:26]} 19. a5 {[%emt 0:02:00] White is more active.} b5 {[%emt 0:00:17]} 20. Ne3 {[%emt 0:00:02]} c5 {[%emt 0:01:32]} ({Better is} 20... Ne8 $14) 21. g4 $16 {[%emt 0:00:13]} g6 {[%emt 0:00:01]} (21... Ne8 $16 22. g5 Qc6) 22. g5 $18 {[%emt 0:00:15]} Nh5 {[%emt 0:00:47]} 23. Nd5 {[%emt 0:00:01] Prevents Nf4} Qc6 {[%emt 0:01:22]} 24. Bh3 {[%emt 0:00:12]} Rb7 {[%emt 0:00:09]} 25. Rad1 {[%emt 0:00:23]} Re8 {[%emt 0:00:09]} 26. Be3 {[%emt 0:00:17]} Bg7 {[%emt 0:00:01]} 27. Rfe1 {[%emt 0:00:54]} cxb4 {[%emt 0:00:04] A mistake that costs the game.} (27... Nf4 $16 {might work better.} 28. Qf3 (28. Bxf4 exf4 29. Qf3 Be5 $16) 28... Nxh3+ 29. Qxh3 Qe6) 28. cxb4 {[%emt 0:00:59]} Qc4 {[%emt 0:00:05] [#]} (28... Nf4 29. Bxf4 (29. Nxf4 exf4 30. Bxf4 Ne5 $16) 29... exf4) 29. Qxc4 {[%emt 0:00:38]} bxc4 {[%emt 0:00:01]} 30. f3 {[%emt 0:00:13]} Nb8 {[%emt 0:00:06][%cal Bd7b8,Bb8c6,Bc6d4][%mdl 32]} 31. Rc1 {[%emt 0:00:03]} Nc6 {[%emt 0:00:01]} 32. Rxc4 {[%emt 0:00:06]} Nd4 {[%emt 0:00:01]} 33. Kg2 {[%emt 0:00:14]} Reb8 {[%emt 0:00:11]} 34. Bg4 {[%emt 0:00:19]} Bf8 {[%emt 0:00:09]} 35. Bxh5 {[%emt 0:00:25]} gxh5 {[%emt 0:00:01]} 36. Bxd4 {[%emt 0:00:15]} exd4 {[%emt 0:00:02]} 37. Rxd4 {[%emt 0:00:01]} Bxb4 {[%emt 0:00:09]} 38. Rb1 {[%emt 0:00:06]} Bxa5 {[%emt 0:00:14]} 39. Nf6+ {[%emt 0:00:06]} Kf8 {[%emt 0:00:02]} 40. Rxb7 {[%emt 0:00:13]} Rxb7 {[%emt 0:00:01]} 41. Nxh7+ {[%emt 0:00:11][%mdl 4096] Endgame. KRB-KRN} ({Don't do} 41. Nxh5 Bb6 42. Rc4 a5 $18) 41... Ke7 {[%emt 0:00:01]} 42. Nf6 {[%emt 0:00:03]} Rb2+ {[%emt 0:00:04]} 43. Kf1 {[%emt 0:00:16] Hoping for Rd7+.} Rh2 $2 {[%emt 0:00:18]} (43... Rb1+ 44. Kg2 Rb2+ 45. Kh3 Rb3) 44. Rd7+ {[%emt 0:00:13]} Ke6 {[%emt 0:00:02]} 45. Ra7 {[%emt 0:00:03]} Bc3 {[%emt 0:00:04]} 46. Rxa6+ {[%emt 0:00:14]} Ke5 {[%emt 0:00:02]} 47. Nd5 {[%emt 0:00:25]} ({Weaker is} 47. Nxh5 Rxh4 48. Ng3 Kf4 $16) 47... Bd4 {[%emt 0:00:04]} 48. Rf6 {[%emt 0:00:04]} Bc5 {[%emt 0:00:12] Repels Ne7} 49. Rxf7 {[%emt 0:00:08]} Kd4 {[%emt 0:00:01]} 50. g6 {[%emt 0:00:17] [#] And now g7 would win.} Kd3 {[%emt 0:00:04]} 51. g7 {[%emt 0:00:08]} Rf2+ {[%emt 0:00:04]} 52. Ke1 {[%emt 0:00:03] Strongly threatening Nf4+.} Re2+ {[%emt 0:00:12]} 53. Kd1 {[%emt 0:00:02] White threatens Nf4+ and mate.} Rh2 {[%emt 0:00:04]} 54. Nf4+ {[%emt 0:00:04]} (54. g8=B $2 Rh1#) 54... Ke3 {[%emt 0:00:07]} 55. g8=Q {[%emt 0:00:09] Weighted Error Value: White=0.11 (very precise) /Black=0.34.  Mistake:       	---       	Black=6      Inaccurate:     	White=2     	Black=4      OK:         	White=24    	Black=14     Best:        	White=1     	Black=1} 1-0